bitfinex-derivatives/quotes_ETHF0:USTF0_20241005
["timestamp","ask_amount","ask_price","bid_price","bid_amount"]
[1728156172117,0.37529,2398.0,2397.9,2.4434877]
[1728156174120,0.37529,2398.0,2397.9,1.35]
[1728156177521,0.37529,2398.0,2397.9,1.7729]
[1728156179012,0.37529,2398.0,2397.9,1.35]
[1728156181028,3.21313,2398.3,2397.9,1.35]
[1728156181212,0.37528,2398.1,2397.9,1.35]
[1728156182321,0.37526,2398.2,2397.9,1.35]
[1728156182521,0.37529,2398.1,2397.9,1.35]
[1728156183917,3.21313,2398.3,2397.9,1.35]
[1728156184223,0.37528,2398.1,2397.9,1.35]
[1728156187733,3.21313,2398.3,2397.9,1.35]
[1728156188028,0.37529,2398.0,2397.9,1.35]
[1728156200038,0.37529,2398.0,2397.9,1.7253]
[1728156200735,0.37529,2398.0,2397.9,1.35]
[1728156201335,0.37532,2397.8,2397.7,1.5149877]
[1728156201642,0.37535,2397.6,2397.5,0.4093]
[1728156201837,0.37535,2397.6,2397.5,2.1865]
[1728156202530,2.1403,2397.9,2397.5,7.4511877]
[1728156202531,1.29931,2397.9,2397.5,7.4511877]
[1728156202734,1.29931,2397.9,2397.8,1.35]
[1728156203847,1.29931,2397.9,2397.8,1.7603]
[1728156204436,0.37531,2397.9,2397.8,1.7603]
[1728156206739,4.1704,2397.9,2397.6,1.0934877]
[1728156206945,0.37535,2397.6,2397.5,0.8365]
[1728156221261,0.924,2397.7,2397.5,0.8365]
[1728156221262,0.37534,2397.7,2397.5,0.8365]
[1728156221455,0.37534,2397.7,2397.6,1.35]
[1728156224264,0.924,2397.9,2397.6,2.4434877]
[1728156224265,0.37533,2397.8,2397.6,2.4434877]
[1728156224465,0.37534,2397.7,2397.6,2.4434877]
[1728156230573,0.37534,2397.7,2397.6,1.35]
[1728156235984,1.86229,2397.9,2397.5,1.7772]
[1728156235985,0.37535,2397.6,2397.5,1.7772]
[1728156236279,0.77295,2397.6,2397.5,1.7772]
[1728156236576,0.77295,2397.6,2397.5,1.35]
[1728156236798,0.37538,2397.4,2397.3,0.4117]
[1728156237081,2.274,2397.4,2397.0,1.5815877]
[1728156237282,0.37543,2397.1,2396.9,1.7617]
[1728156237576,0.37543,2397.1,2396.9,2.1528]
[1728156237779,0.37545,2397.0,2396.9,2.1528]
[1728156238084,0.37544,2397.1,2396.9,2.1528]
[1728156238674,0.37544,2397.1,2397.0,1.0934877]
[1728156238982,1.76482,2397.3,2396.9,2.8551877]
[1728156239177,0.37545,2397.0,2396.9,2.8551877]
[1728156239389,0.8263,2397.3,2396.8,2.4434877]
[1728156239576,0.37546,2396.9,2396.8,2.4434877]
[1728156240378,0.37546,2397.0,2396.8,2.4434877]
[1728156240680,0.3969,2396.9,2396.8,2.4434877]
[1728156240877,0.37548,2396.8,2396.5,0.097]
[1728156241079,1.35,2396.8,2396.3,0.4066]
[1728156241381,5.86949,2396.9,2396.3,0.4066]
[1728156241382,1.2995,2396.7,2396.4,1.35]
[1728156241578,0.37551,2396.6,2396.4,1.35]
[1728156241781,0.37551,2396.6,2396.3,0.78215]
[1728156241782,0.37551,2396.6,2396.5,1.35]
[1728156243578,0.799,2396.9,2396.5,1.35]
[1728156243782,0.37545,2397.0,2396.8,1.35]
[1728156244085,0.37545,2397.0,2396.6,0.4128]
[1728156244086,0.37545,2397.0,2396.9,1.7577]
[1728156245093,0.37545,2397.0,2396.9,0.4077]
[1728156251189,5.0764,2397.6,2396.9,5.9297]
[1728156251396,0.37539,2397.4,2397.2,1.35]
[1728156251597,2.274,2397.4,2397.1,0.4006]
[1728156251887,0.37541,2397.2,2397.1,0.4006]
[1728156252885,6.46054,2397.2,2396.6,1.72196804]
[1728156253084,0.37547,2396.9,2396.7,0.8085]
[1728156253287,0.37545,2397.0,2396.7,2.53399]
[1728156253488,1.29945,2397.0,2396.7,2.53399]
[1728156254093,1.29945,2397.0,2396.7,2.1585]
[1728156254895,0.924,2397.0,2396.7,2.1585]
[1728156255098,0.37546,2396.9,2396.7,2.1585]
[1728156255291,0.924,2397.0,2396.7,2.1585]
[1728156255292,2.274,2397.0,2396.7,2.1585]
[1728156255590,2.274,2397.0,2396.6,0.4061]
[1728156255591,0.37549,2396.7,2396.6,0.4061]
[1728156255792,0.37549,2396.7,2396.6,1.2388]
[1728156256190,0.806,2397.1,2396.6,1.2388]
[1728156256191,0.37548,2396.8,2396.6,1.2388]
[1728156256890,0.37548,2396.8,2396.5,1.72552]
[1728156256891,0.37552,2396.6,2396.3,1.82255]
[1728156257092,0.37552,2396.6,2396.4,1.2342]
[1728156258803,0.37552,2396.6,2396.4,2.5842]
[1728156259894,0.37552,2396.5,2396.4,2.5842]
[1728156260492,0.37552,2396.5,2396.4,1.2342]
[1728156261000,0.37552,2396.5,2396.1,1.35]
[1728156261001,1.35,2396.5,2396.1,1.35]
[1728156261296,1.35,2396.5,2395.8,4.287]
[1728156261297,0.37562,2395.9,2395.8,1.447]
[1728156261491,1.35,2396.2,2395.8,6.3253]
[1728156261698,1.7394,2396.2,2395.8,2.1517]
[1728156261893,0.37561,2396.0,2395.8,2.1517]
[1728156262093,0.37562,2395.9,2395.8,2.1517]
[1728156262495,0.37562,2395.9,2395.8,6.3253]
[1728156262995,1.7394,2396.2,2395.8,2.1517]
[1728156263300,0.37562,2395.9,2395.8,2.1517]
[1728156265590,1.72562,2395.9,2395.8,0.8017]
[1728156265797,3.21306,2395.9,2395.5,4.5578]
[1728156265992,0.37565,2395.7,2395.6,0.7891]
[1728156266203,2.274,2395.9,2395.6,0.7891]
[1728156266395,0.37564,2395.8,2395.6,0.7891]
[1728156266594,0.37565,2395.7,2395.6,0.7891]
[1728156268997,0.37564,2395.8,2395.6,0.7891]
[1728156269402,0.37564,2395.8,2395.6,2.1391]
[1728156270106,0.37564,2395.8,2395.7,3.2078]
[1728156270801,0.37564,2395.8,2395.6,2.1391]
[1728156271104,0.37564,2395.8,2395.7,3.2078]
[1728156271904,0.37564,2395.8,2395.6,2.1391]
[1728156272104,0.37564,2395.8,2395.7,3.2078]
[1728156276204,0.37564,2395.8,2395.6,2.1391]
[1728156276910,0.6788,2396.2,2395.6,2.1391]
[1728156277210,1.35,2396.0,2395.6,2.1391]
[1728156277511,0.37564,2395.8,2395.6,0.7891]
[1728156277707,0.37563,2395.8,2395.6,0.7891]
[1728156277906,0.79173,2395.8,2395.6,0.7891]
[1728156280109,0.37565,2395.7,2395.6,0.7891]
[1728156280912,0.79174,2395.8,2395.6,0.7891]
[1728156281309,0.37565,2395.7,2395.6,0.7891]
[1728156281502,0.79175,2395.8,2395.6,0.7891]
[1728156282819,1.35,2395.7,2395.6,0.7891]
[1728156286714,1.35,2395.7,2395.6,1.16476]
[1728156287215,1.71574,2395.8,2395.6,1.16476]
[1728156288521,8.71422,2396.3,2395.8,0.37562]
[1728156288714,0.37559,2396.1,2395.9,0.4162]
[1728156288916,4.5578,2396.3,2396.0,0.8006]
[1728156289211,0.924,2396.1,2396.0,0.8006]
[1728156289417,1.29959,2396.1,2396.0,0.8006]
[1728156289615,0.924,2396.1,2396.0,0.8006]
[1728156289920,1.29959,2396.1,2396.0,0.8006]
[1728156290112,0.924,2396.2,2396.0,0.8006]
[1728156290512,0.37559,2396.1,2396.0,0.8006]
[1728156291820,1.72559,2396.1,2396.0,0.8006]
[1728156293319,1.35,2396.1,2396.0,0.8006]
[1728156293511,1.72559,2396.1,2396.0,0.8006]
[1728156301929,1.35,2396.1,2396.0,0.8006]
[1728156302226,1.72559,2396.1,2396.0,0.8006]
[1728156303024,0.924,2396.2,2396.0,1.1762]
[1728156303025,0.37558,2396.2,2396.0,1.1762]
[1728156303527,0.37558,2396.2,2396.0,0.8006]
[1728156303729,2.274,2396.3,2396.0,0.8006]
[1728156303730,1.35,2396.3,2396.0,0.8006]
[1728156304016,3.2078,2396.4,2396.0,0.8006]
[1728156304017,7.3458,2396.7,2396.5,0.37552]
[1728156304227,1.72549,2396.8,2396.6,1.2443]
[1728156305327,1.35,2396.8,2396.6,1.2443]
[1728156305517,0.37549,2396.7,2396.6,1.2443]
[1728156306610,1.72548,2396.8,2396.6,1.2443]
[1728156306814,1.35,2396.8,2396.6,1.2443]
[1728156307016,2.274,2397.0,2396.6,1.6198]
[1728156307227,2.64946,2397.0,2396.6,1.6198]
[1728156307420,0.37547,2396.9,2396.6,1.6198]
[1728156307621,0.37547,2396.9,2396.6,1.2443]
[1728156308429,0.37548,2396.8,2396.6,1.2443]
[1728156310224,5.47546,2397.2,2396.6,1.2443]
[1728156310225,5.062,2397.7,2396.7,13.32848953]
[1728156310421,5.062,2397.7,2396.9,1.35]
[1728156310422,0.37542,2397.2,2396.9,1.35]
[1728156310629,0.37541,2397.3,2397.0,1.2629]
[1728156310934,1.72541,2397.3,2397.0,1.2629]
[1728156311418,0.37543,2397.2,2397.0,1.2629]
[1728156311625,1.72541,2397.3,2397.0,1.2629]
[1728156311831,5.4553,2397.7,2397.0,1.2629]
[1728156311832,1.35,2397.2,2397.0,1.2629]
[1728156312029,1.72542,2397.2,2397.0,1.2629]
[1728156312534,0.37539,2397.4,2397.0,2.6129]
[1728156312722,0.37539,2397.4,2397.0,5.8207]
[1728156312919,1.35,2397.5,2397.0,6.19614]
[1728156313123,0.37538,2397.4,2397.0,5.8207]
[1728156313532,4.5313,2397.7,2397.1,1.72542]
[1728156313533,1.72536,2397.6,2397.1,1.72542]
[1728156313721,8.6621,2397.7,2397.1,4.70664011]
[1728156313722,1.35,2397.5,2397.1,4.70664011]
[1728156314035,1.72541,2397.3,2397.2,1.2308]
[1728156315623,1.72541,2397.3,2396.8,0.47247]
[1728156315624,0.37545,2397.0,2396.8,0.097]
[1728156315835,1.72545,2397.0,2396.9,1.203]
[1728156316027,1.72544,2397.1,2396.9,1.203]
[1728156317025,3.2078,2397.4,2396.9,2.553]
[1728156317337,3.58319,2397.4,2396.9,2.92845]
[1728156317632,0.422,2397.5,2397.1,1.35]
[1728156317828,0.923,2397.6,2397.2,0.37541]
[1728156317829,0.37536,2397.6,2397.2,0.37541]
[1728156318129,0.37536,2397.6,2397.3,0.8249]
[1728156318130,1.72536,2397.6,2397.3,0.8249]
[1728156318334,1.72536,2397.6,2397.3,1.2345]
[1728156318721,1.72537,2397.5,2397.3,1.2345]
[1728156319128,1.72538,2397.4,2397.3,1.2345]
[1728156320129,0.37537,2397.5,2397.3,1.2345]
[1728156320329,0.37538,2397.4,2397.3,1.2345]
[1728156320639,1.35,2397.5,2397.3,1.2345]
[1728156320823,1.72537,2397.5,2397.3,1.2345]
[1728156322228,0.422,2397.8,2397.3,5.7923]
[1728156322427,0.79733,2397.8,2397.3,5.7923]
[1728156322623,0.79733,2397.8,2397.4,0.37538]
[1728156323128,0.79733,2397.8,2397.3,6.16769]
[1728156323837,1.35,2397.9,2397.5,1.35]
[1728156324031,1.72531,2397.9,2397.5,1.35]
[1728156324729,0.4103,2398.0,2397.6,0.37534]
[1728156324931,1.7603,2398.0,2397.7,0.7836]
[1728156325133,1.7603,2398.0,2397.7,1.1855]
[1728156325535,2.1356,2398.0,2397.7,1.1855]
[1728156326429,1.35,2398.0,2397.7,1.1855]
[1728156327432,1.72529,2398.0,2397.7,1.1855]
[1728156328533,1.35,2398.0,2397.7,1.1855]
[1728156328735,1.35,2398.0,2397.7,1.56083]
[1728156328943,1.7253,2398.0,2397.7,1.1855]
[1728156332347,0.3753,2397.9,2397.7,1.1855]
[1728156332946,1.7253,2398.0,2397.7,1.1855]
[1728156335541,1.72532,2397.9,2397.7,1.1855]
[1728156335942,0.37532,2397.8,2397.7,1.1855]
[1728156336139,1.72531,2397.9,2397.7,1.1855]
[1728156341440,0.37531,2397.9,2397.7,1.1855]
[1728156342446,1.35,2398.0,2397.7,1.1855]
[1728156342447,1.7253,2398.0,2397.7,1.1855]
[1728156342642,0.37531,2397.9,2397.7,1.1855]
[1728156344044,1.7253,2398.0,2397.7,1.1855]
[1728156348046,0.37531,2397.9,2397.7,1.1855]
[1728156348648,1.35,2398.0,2397.7,1.1855]
[1728156348649,1.7253,2398.0,2397.7,1.1855]
[1728156348950,1.7253,2398.0,2397.7,1.56083]
[1728156355651,1.35,2398.0,2397.7,1.56083]
[1728156358654,1.72529,2398.0,2397.7,1.56083]
[1728156359051,0.37531,2397.9,2397.7,1.1855]
[1728156359364,1.7253,2398.0,2397.7,1.56084]
[1728156359954,0.37532,2397.8,2397.7,1.1855]
[1728156360457,2.0543,2398.0,2397.7,1.1855]
[1728156360656,0.37531,2397.9,2397.7,1.1855]
[1728156362163,0.77961,2397.9,2397.7,1.1855]
[1728156363063,0.4043,2397.9,2397.7,1.1855]
[1728156363263,0.4043,2397.9,2397.7,2.27808982]
[1728156363264,0.77962,2397.9,2397.7,2.27808982]
[1728156364966,1.30328,2398.1,2397.8,0.37532]
[1728156365170,1.70908,2398.1,2397.8,1.46790982]
[1728156365967,1.70908,2398.1,2397.8,1.46915068]
[1728156366357,1.70908,2398.1,2397.9,1.09383068]
[1728156366562,1.30327,2398.1,2398.0,1.09383068]
[1728156366762,0.37527,2398.1,2398.0,0.3975]
[1728156371564,0.923,2398.2,2398.0,0.3975]
[1728156371763,0.923,2398.2,2398.1,0.4098]
[1728156371764,1.29827,2398.2,2398.1,0.4098]
[1728156371960,1.29827,2398.2,2398.1,0.8057]
[1728156372673,0.37527,2398.2,2398.1,0.8057]
[1728156373074,0.37525,2398.3,2398.1,0.8057]
[1728156373266,2.6788,2398.4,2398.1,0.8057]
[1728156373466,0.37525,2398.3,2398.1,0.8057]
[1728156373862,0.4058,2398.4,2398.1,0.8057]
[1728156374069,3.2078,2398.5,2398.2,2.75727952]
[1728156374266,3.2078,2398.5,2398.3,1.09383068]
[1728156374267,3.58302,2398.5,2398.3,1.09383068]
[1728156374469,3.58302,2398.5,2398.3,1.52203068]
[1728156375168,4.50602,2398.5,2398.3,1.52203068]
[1728156375468,3.2078,2398.5,2398.3,2.87203068]
[1728156376577,3.58301,2398.5,2398.3,1.7782]
[1728156377667,3.2078,2398.5,2398.3,1.7782]
[1728156379383,3.58302,2398.5,2398.3,1.7782]
[1728156379777,3.2078,2398.5,2398.3,1.7782]
[1728156379977,3.58301,2398.5,2398.3,1.7782]
[1728156380672,3.58301,2398.5,2398.3,2.87203068]
[1728156381074,3.2078,2398.5,2398.3,2.87203068]
[1728156382176,0.37518,2398.7,2398.4,1.72523]
[1728156382375,0.37518,2398.7,2398.5,0.8148]
[1728156382576,0.923,2398.8,2398.6,1.35]
[1728156382876,0.37517,2398.8,2398.6,1.7411]
[1728156383377,3.2078,2398.9,2398.6,1.7411]
[1728156383581,0.37515,2398.9,2398.7,1.35]
[1728156384276,0.79674,2399.0,2398.7,1.35]
[1728156384678,0.37515,2398.9,2398.7,1.35]
[1728156384881,5.49558,2399.2,2398.8,1.35]
[1728156384882,3.58291,2399.2,2398.8,1.35]
[1728156385078,3.58291,2399.2,2399.0,1.35]
[1728156385279,3.58291,2399.2,2399.1,0.4265]
[1728156389380,0.37511,2399.2,2399.1,0.4265]
[1728156394397,0.37511,2399.2,2398.9,2.1936]
[1728156394694,0.37512,2399.1,2398.9,0.8436]
[1728156395192,0.4103,2399.0,2398.9,0.8436]
[1728156398994,0.78543,2399.0,2398.9,0.8436]
[1728156400495,0.37511,2399.2,2398.9,0.8436]
[1728156403199,0.37511,2399.2,2399.0,1.35]
[1728156403901,0.37512,2399.1,2399.0,1.35]
[1728156406096,0.37512,2399.1,2398.9,0.8436]
[1728156406899,0.37511,2399.2,2398.9,0.8436]
[1728156409105,4.0072,2399.3,2398.9,1.21874]
[1728156410098,0.3751,2399.2,2398.9,1.21874]
[1728156413205,0.3751,2399.2,2398.9,0.8436]
[1728156413699,4.9292,2399.3,2399.0,1.35]
[1728156413907,4.9292,2399.3,2399.0,1.72513]
[1728156414204,1.2971,2399.3,2399.1,0.4044]
[1728156414706,0.37508,2399.4,2399.1,0.4044]
[1728156414907,0.77846,2399.5,2399.1,2.12951]
[1728156415099,0.922,2399.5,2399.3,1.35]
[1728156415300,0.922,2399.5,2399.4,0.8275]
[1728156415602,1.29705,2399.6,2399.4,1.2394]
[1728156416110,0.37505,2399.5,2399.4,1.2394]
[1728156423805,1.29704,2399.6,2399.4,2.5894]
[1728156424005,0.922,2399.6,2399.4,2.5894]
[1728156424816,0.37505,2399.5,2399.4,2.5894]
[1728156427313,0.93768,2399.4,2398.8,1.18722779]
[1728156427515,0.37513,2399.0,2398.9,1.2619]
[1728156428016,0.37513,2399.0,2398.9,0.8342]
[1728156428210,0.37513,2399.0,2398.7,0.391]
[1728156428211,0.37516,2398.8,2398.7,0.391]
[1728156428410,0.37516,2398.8,2398.5,1.35]
[1728156428411,0.37519,2398.7,2398.5,2.1482]
[1728156428614,0.37519,2398.7,2398.5,2.5392]
[1728156428920,0.3966,2398.9,2398.5,2.5392]
[1728156429117,0.37517,2398.8,2398.5,2.5392]
[1728156429721,0.3966,2398.9,2398.7,1.35]
[1728156430014,0.3966,2398.9,2398.8,0.391]
[1728156430015,0.77176,2398.9,2398.8,0.391]
[1728156430213,1.69376,2398.9,2398.8,0.391]
[1728156431419,0.922,2399.0,2398.8,1.741]
[1728156431723,0.922,2399.0,2398.9,0.8233]
[1728156431927,1.71972,2399.1,2398.9,2.1733]
[1728156432218,4.9666,2399.3,2398.9,2.1733]
[1728156432219,3.2078,2399.3,2398.9,2.1733]
[1728156432417,0.37513,2399.1,2398.9,2.1733]
[1728156434713,0.922,2399.2,2398.9,2.1733]
[1728156434916,0.79283,2399.0,2398.9,0.8233]
[1728156439019,0.4177,2399.0,2398.9,0.8233]
[1728156439526,0.79283,2399.0,2398.9,0.8233]
[1728156440826,0.4177,2399.0,2398.9,0.8233]
[1728156441121,0.79283,2399.0,2398.9,0.8233]
[1728156441315,0.37513,2399.0,2398.9,0.8233]
[1728156441515,0.37513,2399.1,2398.9,0.8233]
[1728156441720,0.37512,2399.1,2398.9,0.8233]
[1728156442916,0.37513,2399.0,2398.9,0.8233]
[1728156444825,0.37513,2399.1,2398.9,0.8233]
[1728156445120,0.37513,2399.0,2398.9,0.8233]
[1728156446929,0.37513,2399.1,2398.9,0.8233]
[1728156447422,1.3377,2399.2,2398.9,0.8233]
[1728156448019,0.37513,2399.1,2398.9,0.8233]
[1728156453125,1.3377,2399.2,2398.9,0.8233]
[1728156453126,0.37513,2399.0,2398.9,0.8233]
[1728156454127,1.3377,2399.2,2398.9,0.8233]
[1728156454443,0.37513,2399.0,2398.9,0.8233]
[1728156473030,0.37513,2399.0,2398.9,1.91352779]
[1728156479341,0.37513,2399.0,2398.9,0.8233]
[1728156486350,0.37513,2399.0,2398.9,1.91352779]
[1728156486539,1.29613,2399.0,2398.9,3.5777593]
[1728156487444,1.29613,2399.0,2398.9,2.48753151]
[1728156487745,1.29613,2399.0,2398.9,2.48750284]
[1728156487951,1.29613,2399.0,2398.9,3.58196234]
[1728156488752,1.29613,2399.0,2398.9,1.9177595]
[1728156494355,1.29613,2399.0,2398.9,0.8233]
[1728156501358,0.37515,2398.9,2398.8,1.0944595]
[1728156501563,0.77135,2398.9,2398.8,1.0944595]
[1728156502579,0.37516,2398.8,2398.7,1.0944595]
[1728156502763,0.37516,2398.8,2398.7,2.7586023]
[1728156503864,0.37516,2398.8,2398.7,1.0944595]
[1728156504063,0.37516,2398.8,2398.7,2.7585133]
[1728156504569,0.37516,2398.8,2398.7,1.0944595]
[1728156510375,0.37516,2398.8,2398.6,2.5709]
[1728156510376,0.37518,2398.7,2398.6,3.6653595]
[1728156510576,0.37518,2398.7,2398.6,5.32879324]
[1728156512176,5.06666,2399.0,2398.6,5.32872215]
[1728156512177,0.37517,2398.8,2398.6,5.32872215]
[1728156512376,0.37517,2398.8,2398.6,3.6653595]
[1728156513577,5.06666,2399.0,2398.6,3.6653595]
[1728156513776,0.37518,2398.8,2398.6,3.6653595]
[1728156515883,0.37518,2398.7,2398.6,3.6653595]
[1728156516180,0.37518,2398.7,2398.6,5.32859146]
[1728156516374,0.37518,2398.7,2398.6,2.5709]
[1728156523587,4.1288,2399.0,2398.6,2.5709]
[1728156523788,0.37518,2398.7,2398.6,2.5709]
[1728156524490,0.37518,2398.7,2398.6,5.3285313]
[1728156524898,0.37518,2398.7,2398.6,5.32852189]
[1728156525893,0.37518,2398.7,2398.6,5.32854284]
[1728156527090,0.37518,2398.7,2398.6,5.32853092]
[1728156528394,0.37518,2398.7,2398.6,3.6653595]
[1728156528594,0.37518,2398.7,2398.6,5.32856472]
[1728156529297,0.37518,2398.7,2398.6,3.6653595]
[1728156529482,0.37518,2398.7,2398.6,5.32858171]
[1728156531497,0.37518,2398.7,2398.6,2.5709]
[1728156534893,5.06666,2399.0,2398.6,2.5709]
[1728156535094,0.37518,2398.7,2398.6,2.5709]
[1728156535897,5.06666,2399.0,2398.6,2.5709]
[1728156535898,0.37516,2398.9,2398.6,2.5709]
[1728156536199,4.138,2399.3,2398.8,4.5578]
[1728156536397,4.138,2399.3,2399.2,1.35]
[1728156536802,4.51309,2399.3,2399.2,1.35]
[1728156537303,4.51309,2399.3,2399.2,0.4074]
[1728156537502,0.37509,2399.3,2399.2,0.4074]
[1728156544310,0.92,2399.4,2399.2,0.4074]
[1728156544522,1.29508,2399.4,2399.2,0.4074]
[1728156544820,0.92,2399.4,2399.2,0.4074]
[1728156545125,0.37509,2399.3,2399.2,0.4074]
[1728156556229,0.37509,2399.3,2399.1,2.131]
[1728156556430,0.4009,2399.2,2399.1,2.131]
[1728156559530,1.7509,2399.2,2399.1,0.3939]
[1728156559737,0.37513,2399.1,2398.8,2.8518595]
[1728156559937,0.37513,2399.0,2398.9,0.8006]
[1728156564039,0.37513,2399.0,2398.9,2.1506]
[1728156568646,1.7509,2399.2,2398.9,2.1506]
[1728156568847,0.37513,2399.1,2398.9,2.1506]
[1728156570647,3.2078,2399.3,2398.9,2.1506]
[1728156570949,3.2078,2399.3,2399.1,1.35]
[1728156570950,1.29409,2399.3,2399.1,1.35]
[1728156571142,1.29409,2399.3,2399.2,0.8415]
[1728156571343,0.919,2399.3,2399.2,1.2566]
[1728156571546,1.29409,2399.3,2399.2,1.2566]
[1728156577849,0.919,2399.3,2399.2,1.2566]
[1728156578354,1.29409,2399.3,2399.2,1.2566]
[1728156583051,2.64409,2399.3,2399.2,0.8415]
[1728156583255,0.37512,2399.1,2399.0,1.8827595]
[1728156584860,0.37512,2399.1,2399.0,0.7883]
[1728156585357,1.29311,2399.2,2399.0,0.7883]
[1728156585558,1.29311,2399.2,2399.1,0.4171]
[1728156585764,0.918,2399.2,2399.1,1.7671]
[1728156586066,1.2931,2399.2,2399.1,1.7671]
[1728156591766,0.918,2399.2,2399.1,2.8615595]
[1728156592272,1.2931,2399.3,2399.1,2.8615595]
[1728156598275,0.918,2399.4,2399.1,2.8615595]
[1728156598477,1.29307,2399.4,2399.1,2.8615595]
[1728156598664,0.918,2399.4,2399.1,2.8615595]
[1728156599178,1.29307,2399.4,2399.1,2.8615595]
[1728156600668,0.37509,2399.3,2399.1,2.8615595]
[1728156600970,1.29307,2399.4,2399.1,2.8615595]
[1728156601161,0.918,2399.4,2399.1,2.8615595]
[1728156601364,1.29307,2399.4,2399.1,2.8615595]
[1728156601872,0.918,2399.4,2399.1,2.8615595]
[1728156602369,1.29308,2399.4,2399.1,2.8615595]
[1728156602579,0.37509,2399.3,2399.1,2.8615595]
[1728156603570,0.77749,2399.3,2399.2,1.0944595]
[1728156604568,0.77749,2399.3,2399.1,2.8615595]
[1728156606768,0.3751,2399.2,2399.1,1.5115595]
[1728156606973,0.3751,2399.2,2399.1,0.4171]
[1728156607171,0.4024,2399.3,2399.1,0.4171]
[1728156607370,0.77749,2399.3,2399.1,0.4171]
[1728156607780,1.69449,2399.3,2399.1,0.4171]
[1728156612282,1.3194,2399.3,2399.1,0.4171]
[1728156612988,1.69449,2399.3,2399.1,0.4171]
[1728156614073,1.69449,2399.3,2399.2,1.0944595]
[1728156614477,0.917,2399.3,2399.2,1.0944595]
[1728156615383,3.2078,2399.6,2399.2,3.30429459]
[1728156615587,4.405293,2399.8,2399.5,2.44408963]
[1728156615880,0.917,2399.7,2399.6,2.28918963]
[1728156616477,3.641583,2399.8,2399.6,1.1951]
[1728156616676,0.917,2399.8,2399.7,1.35]
[1728156616884,1.29199,2399.9,2399.7,1.35]
[1728156617676,0.37501,2399.8,2399.7,1.35]
[1728156619793,0.917,2399.9,2399.7,1.35]
[1728156620293,0.37501,2399.8,2399.7,1.35]
[1728156620589,0.79861,2399.8,2399.7,1.35]
[1728156620790,0.79861,2399.8,2399.6,2.5451]
[1728156622888,0.4236,2399.8,2399.6,2.5451]
[1728156623283,0.79862,2399.8,2399.6,2.5451]
[1728156623483,0.37502,2399.7,2399.6,2.5451]
[1728156623689,0.4236,2399.8,2399.6,2.5451]
[1728156623690,0.79861,2399.8,2399.6,2.5451]
[1728156624191,0.37501,2399.8,2399.7,1.35]
[1728156626592,0.375,2399.9,2399.7,1.35]
[1728156626794,0.37501,2399.8,2399.7,1.35]
[1728156630192,5.45657,2400.0,2399.6,2.5451]
[1728156630394,0.37502,2399.7,2399.6,2.5451]
[1728156630596,0.37502,2399.7,2399.6,0.7951]
[1728156630986,0.78622,2399.7,2399.6,0.7951]
[1728156633101,0.37502,2399.7,2399.6,0.7951]
[1728156633302,0.37502,2399.8,2399.6,0.7951]
[1728156633496,0.37502,2399.8,2399.7,1.7768]
[1728156634296,4.14527,2400.0,2399.7,1.7768]
[1728156634297,4.1248,2400.0,2399.7,1.7768]
[1728156634506,4.1248,2400.0,2399.8,1.35]
[1728156634710,4.1248,2400.0,2399.9,0.7857]
[1728156634891,3.2078,2400.0,2399.9,0.7857]
[1728156636403,0.37497,2400.1,2399.9,0.7857]
[1728156636903,0.37497,2400.1,2400.0,0.3938]
[1728156637404,0.37498,2400.0,2399.9,0.7857]
[1728156637598,0.37498,2400.0,2399.5,2.5894]
[1728156637599,6.85285,2400.0,2399.5,2.5894]
[1728156637902,0.37503,2399.7,2399.5,2.5894]
[1728156638790,0.4259,2399.9,2399.5,2.5894]
[1728156639004,0.37502,2399.7,2399.5,2.5894]
[1728156639899,0.4259,2399.9,2399.5,2.5894]
[1728156639900,0.37504,2399.6,2399.5,2.5894]
[1728156646004,0.37504,2399.6,2399.5,6.7566]
[1728156646306,0.37504,2399.6,2399.5,3.68348963]
[1728156646615,0.37504,2399.6,2399.5,2.5894]
[1728156647096,0.37504,2399.6,2399.5,3.68348963]
[1728156648005,0.37504,2399.6,2399.5,2.5894]
[1728156648306,0.37504,2399.6,2399.5,1.2394]
[1728156649403,0.37504,2399.6,2399.5,2.5894]
[1728156650110,0.4132,2399.7,2399.5,2.5894]
[1728156650303,0.37504,2399.6,2399.5,2.5894]
[1728156654913,0.37504,2399.6,2399.5,0.8156]
[1728156662218,0.76573,2399.7,2399.5,0.8156]
[1728156662411,0.37502,2399.8,2399.5,2.1656]
[1728156662716,2.266,2399.9,2399.5,2.1656]
[1728156662717,0.37502,2399.7,2399.5,2.1656]
[1728156662911,0.37501,2399.8,2399.5,2.1656]
[1728156663115,1.29101,2399.8,2399.5,2.1656]
[1728156663315,0.37502,2399.7,2399.5,2.1656]
[1728156665220,0.916,2399.8,2399.5,2.1656]
[1728156665425,0.37504,2399.6,2399.5,2.1656]
[1728156665920,0.3998,2399.7,2399.5,2.1656]
[1728156666120,0.37504,2399.6,2399.5,2.1656]
[1728156667118,0.3998,2399.7,2399.5,5.46869844]
[1728156667318,0.77483,2399.7,2399.6,1.09326452]
[1728156671413,6.18827,2400.0,2399.5,3.25886452]
[1728156671414,4.9618,2400.0,2399.5,3.25886452]
[1728156671618,0.37504,2399.7,2399.6,1.09326452]
[1728156674921,5.89224,2399.7,2399.6,1.09326452]